[Event "2026 Biel Blitz Open"]
[Site "Biel, CH"]
[Date "2026.07.19"]
[Round "10"]
[White "Ragavan, Samarth Rajesh"]
[Black "Liu, Bei"]
[Result "1-0"]
[Board "18"]
[TimeControl "180+2"]
[WhiteFideId "39918106"]
[BlackFideId "8603596"]
[WhiteElo "2101"]
[BlackElo "2170"]
[WhiteClock "0:03:02"]
[BlackClock "0:00:06"]
[Variant "Standard"]
[EndDate "2026.07.19"]
[EndTime "15:04:41"]

1. d4 {[%clk 0:03:03]}  d5 {[%clk 0:03:03]} 2. c4 {[%clk 0:03:04]}  e6 {[%clk 0:03:04]} 3. Nf3 {[%clk 0:03:04]}  Nf6 {[%clk 0:03:05]}
4. g3 {[%clk 0:03:05]}  Be7 {[%clk 0:03:06]} 5. Bg2 {[%clk 0:03:07]}  O-O {[%clk 0:03:07]} 6. O-O {[%clk 0:03:07]}  c6 {[%clk 0:03:08]}
7. Nbd2 {[%clk 0:03:07]}  b6 {[%clk 0:03:09]} 8. b3 {[%clk 0:03:06]}  a5 {[%clk 0:03:09]} 9. Bb2 {[%clk 0:03:07]}  Bb7 {[%clk 0:03:07]}
10. Rc1 {[%clk 0:03:07]}  Nbd7 {[%clk 0:03:08]} 11. Re1 {[%clk 0:02:57]}  b5 {[%clk 0:03:04]} 12. c5 {[%clk 0:02:58]}  b4 {[%clk 0:03:04]}
13. h3 {[%clk 0:02:51]}  Ba6 {[%clk 0:03:04]} 14. Qc2 {[%clk 0:02:50]}  h6 {[%clk 0:03:02]} 15. e4 {[%clk 0:02:47]}  dxe4 {[%clk 0:03:03]}
16. Nxe4 {[%clk 0:02:47]}  Nxe4 {[%clk 0:03:01]} 17. Qxe4 {[%clk 0:02:48]}  Bb5 {[%clk 0:03:01]} 18. Ne5 {[%clk 0:02:47]}  Nf6 {[%clk 0:03:00]}
19. Nxc6 {[%clk 0:02:38]}  Nxe4 {[%clk 0:02:18]} 20. Nxd8 {[%clk 0:02:39]}  Rfxd8 {[%clk 0:02:11]} 21. Bxe4 {[%clk 0:02:38]}  Rac8 {[%clk 0:02:13]}
22. Red1 {[%clk 0:02:30]}  Bc6 {[%clk 0:02:12]} 23. Bxc6 {[%clk 0:02:28]}  Rxc6 {[%clk 0:02:14]} 24. Kg2 {[%clk 0:02:29]}  Rd5 {[%clk 0:02:15]}
25. f4 {[%clk 0:02:28]}  Bf6 {[%clk 0:02:14]} 26. Kf3 {[%clk 0:02:28]}  Kf8 {[%clk 0:02:13]} 27. Ke4 {[%clk 0:02:29]}  Ke7 {[%clk 0:02:11]}
28. Ra1 {[%clk 0:02:20]}  Rc8 {[%clk 0:01:19]} 29. Rdc1 {[%clk 0:02:19]}  Rcd8 {[%clk 0:01:00]} 30. Rc4 {[%clk 0:02:19]}  Rb8 {[%clk 0:00:48]}
31. a3 {[%clk 0:02:09]}  bxa3 {[%clk 0:00:45]} 32. Rxa3 {[%clk 0:02:10]}  Kd7 {[%clk 0:00:46]} 33. Bc3 {[%clk 0:02:03]}  Bd8 {[%clk 0:00:41]}
34. c6+ {[%clk 0:01:58]}  Kd6 {[%clk 0:00:39]} 35. b4 {[%clk 0:01:43]}  axb4 {[%clk 0:00:15]} 36. Bxb4+ {[%clk 0:01:44]}  Rxb4 {[%clk 0:00:09]}
37. Rxb4 {[%clk 0:01:44]}  Kxc6 {[%clk 0:00:10]} 38. Ra6+ {[%clk 0:01:40]}  Kd7 {[%clk 0:00:08]} 39. Rb7+ {[%clk 0:01:41]}  Ke8 {[%clk 0:00:08]}
40. Ra8 {[%clk 0:01:36]}  h5 {[%clk 0:00:08]} 41. Raa7 {[%clk 0:01:31]}  Bf6 {[%clk 0:00:04]} 42. Rxf7 {[%clk 0:01:29]}  Rxd4+ {[%clk 0:00:06]}
43. Ke3 {[%clk 0:01:28]}  Rb4 {[%clk 0:00:04]} 44. Rfd7 {[%clk 0:01:23]}  Rb3+ {[%clk 0:00:05]} 45. Rd3 {[%clk 0:01:24]}  Rb1 {[%clk 0:00:04]}
46. g4 {[%clk 0:01:19]}  Rh1 {[%clk 0:00:05]} 47. Ke4 {[%clk 0:01:17]}  Re1+ {[%clk 0:00:05]} 48. Re3 {[%clk 0:01:18]}  Rd1 {[%clk 0:00:04]}
49. g5 {[%clk 0:01:16]}  Bd4 {[%clk 0:00:05]} 50. Ra8+ {[%clk 0:01:17]}  Ke7 {[%clk 0:00:06]} 51. Rd3 {[%clk 0:01:17]}  Rxd3 {[%clk 0:00:06]}
52. Kxd3 {[%clk 0:01:18]}  Bc5 {[%clk 0:00:07]} 53. Ke4 {[%clk 0:01:18]}  Kf7 {[%clk 0:00:07]} 54. Rc8 {[%clk 0:01:17]}  Bd6 {[%clk 0:00:08]}
55. Rd8 {[%clk 0:01:17]}  Bb4 {[%clk 0:00:06]} 56. Rd7+ {[%clk 0:01:18]}  Kg6 {[%clk 0:00:07]} 57. Ke5 {[%clk 0:01:15]}  Be1 {[%clk 0:00:03]}
58. Kxe6 {[%clk 0:01:15]}  Bg3 {[%clk 0:00:04]} 59. f5 {[%clk 0:01:16]}  Kxg5 {[%clk 0:00:05]} 60. Rxg7+ {[%clk 0:01:16]}  Kf4 {[%clk 0:00:06]}
61. f6 {[%clk 0:03:02]} 1-0

[Event "2026 Biel Blitz Open"]
[Site "Biel, CH"]
[Date "2026.07.19"]
[Round "10"]
[White "Kolly, Jacques"]
[Black "Filipovic, Branko"]
[Result "0-1"]
[Board "19"]
[TimeControl "180+2"]
[WhiteFideId "1302183"]
[BlackFideId "14507951"]
[WhiteElo "2203"]
[BlackElo "2109"]
[WhiteTitle "FM"]
[BlackTitle "IM"]
[WhiteClock "0:00:45"]
[BlackClock "0:00:45"]
[Variant "Standard"]
[EndDate "2026.07.19"]
[EndTime "15:04:51"]

1. d4 {[%clk 0:03:03]}  Nf6 {[%clk 0:03:02]} 2. c4 {[%clk 0:03:05]}  b6 {[%clk 0:03:03]} 3. Nc3 {[%clk 0:03:02]}  Bb7 {[%clk 0:03:04]}
4. f3 {[%clk 0:03:03]}  d5 {[%clk 0:03:02]} 5. cxd5 {[%clk 0:03:03]}  Nxd5 {[%clk 0:03:03]} 6. e4 {[%clk 0:03:05]}  Nxc3 {[%clk 0:03:04]}
7. bxc3 {[%clk 0:03:06]}  e6 {[%clk 0:03:05]} 8. Bd3 {[%clk 0:02:57]}  c5 {[%clk 0:03:05]} 9. Ne2 {[%clk 0:02:56]}  Be7 {[%clk 0:02:59]}
10. O-O {[%clk 0:02:55]}  O-O {[%clk 0:02:56]} 11. Be3 {[%clk 0:02:55]}  Nc6 {[%clk 0:02:56]} 12. Qd2 {[%clk 0:02:39]}  Qc7 {[%clk 0:02:39]}
13. Rac1 {[%clk 0:02:32]}  Rfd8 {[%clk 0:02:37]} 14. Rfd1 {[%clk 0:02:33]}  Rac8 {[%clk 0:02:31]} 15. Qe1 {[%clk 0:02:19]}  h6 {[%clk 0:02:27]}
16. Qf2 {[%clk 0:02:12]}  Na5 {[%clk 0:02:26]} 17. Bf4 {[%clk 0:01:38]}  Bd6 {[%clk 0:02:20]} 18. e5 {[%clk 0:01:37]}  Bf8 {[%clk 0:02:20]}
19. Qg3 {[%clk 0:01:33]}  Kh8 {[%clk 0:02:15]} 20. h3 {[%clk 0:01:23]}  Qe7 {[%clk 0:02:07]} 21. Bb1 {[%clk 0:01:11]}  cxd4 {[%clk 0:02:05]}
22. Nxd4 {[%clk 0:01:05]}  a6 {[%clk 0:01:58]} 23. Qf2 {[%clk 0:01:04]}  Nc4 {[%clk 0:01:52]} 24. Qc2 {[%clk 0:00:59]}  g6 {[%clk 0:01:53]}
25. Qf2 {[%clk 0:00:59]}  Bg7 {[%clk 0:01:46]} 26. Bd3 {[%clk 0:00:49]}  Nxe5 {[%clk 0:01:40]} 27. Bxe5 {[%clk 0:00:34]}  Bxe5 {[%clk 0:01:41]}
28. Qe2 {[%clk 0:00:34]}  Qf6 {[%clk 0:01:32]} 29. Bxa6 {[%clk 0:00:25]}  Bxa6 {[%clk 0:01:26]} 30. Qxa6 {[%clk 0:00:26]}  Qf4 {[%clk 0:01:20]}
31. Qf1 {[%clk 0:00:07]}  Qh2+ {[%clk 0:00:54]} 32. Kf2 {[%clk 0:00:08]}  Qg3+ {[%clk 0:00:55]} 33. Kg1 {[%clk 0:00:09]}  Rd5 {[%clk 0:00:48]}
34. Qf2 {[%clk 0:00:11]}  Qh2+ {[%clk 0:00:47]} 35. Kf1 {[%clk 0:00:12]}  Qf4 {[%clk 0:00:49]} 36. Ne2 {[%clk 0:00:03]}  Rxd1+ {[%clk 0:00:45]}
37. Rxd1 {[%clk 0:00:05]}  Qc4 {[%clk 0:00:46]} 38. Qe3 {[%clk 0:00:00]}  Bg7 {[%clk 0:00:46]} 39. Qd2 {[%clk 0:00:00]}  Kh7 {[%clk 0:00:41]}
40. Rc1 {[%clk 0:00:00]}  Ra8 {[%clk 0:00:46]} 41. Rc2 {[%clk 0:00:00]}  Ra5 {[%clk 0:00:45]} 0-1

[Event "2026 Biel Blitz Open"]
[Site "Biel, CH"]
[Date "2026.07.19"]
[Round "10"]
[White "Tkhoruk, Roman"]
[Black "Maruntis, Patrik-Robert"]
[Result "0-1"]
[Board "20"]
[TimeControl "180+2"]
[WhiteFideId "34161589"]
[BlackFideId "1259997"]
[WhiteElo "2055"]
[BlackElo "2167"]
[WhiteClock "0:00:22"]
[BlackClock "0:00:17"]
[Variant "Standard"]
[EndDate "2026.07.19"]
[EndTime "15:03:09"]

1. e4 {[%clk 0:03:03]}  Nc6 {[%clk 0:03:00]} 2. d4 {[%clk 0:02:59]}  e6 {[%clk 0:03:00]} 3. Nf3 {[%clk 0:02:54]}  d6 {[%clk 0:02:54]}
4. Bd3 {[%clk 0:02:44]}  e5 {[%clk 0:02:52]} 5. d5 {[%clk 0:02:43]}  Nce7 {[%clk 0:02:41]} 6. c4 {[%clk 0:02:38]}  g6 {[%clk 0:02:46]}
7. Nc3 {[%clk 0:02:29]}  Bg7 {[%clk 0:02:44]} 8. Be3 {[%clk 0:02:17]}  Nf6 {[%clk 0:02:37]} 9. h3 {[%clk 0:02:12]}  b6 {[%clk 0:02:37]}
10. Qd2 {[%clk 0:02:09]}  a5 {[%clk 0:02:32]} 11. a4 {[%clk 0:02:01]}  h6 {[%clk 0:02:23]} 12. O-O-O {[%clk 0:01:46]}  Nd7 {[%clk 0:02:21]}
13. g4 {[%clk 0:01:42]}  Nc5 {[%clk 0:02:22]} 14. Bxc5 {[%clk 0:01:26]}  bxc5 {[%clk 0:02:23]} 15. Kc2 {[%clk 0:01:25]}  Bd7 {[%clk 0:02:09]}
16. b3 {[%clk 0:01:18]}  Qb8 {[%clk 0:01:56]} 17. Nb5 {[%clk 0:01:13]}  Qb6 {[%clk 0:01:53]} 18. Ng1 {[%clk 0:00:47]}  O-O-O {[%clk 0:01:35]}
19. Ne2 {[%clk 0:00:43]}  f5 {[%clk 0:01:11]} 20. gxf5 {[%clk 0:00:33]}  gxf5 {[%clk 0:01:13]} 21. exf5 {[%clk 0:00:32]}  Nxf5 {[%clk 0:01:07]}
22. Ng3 {[%clk 0:00:27]}  Nxg3 {[%clk 0:00:45]} 23. fxg3 {[%clk 0:00:27]}  Rdf8 {[%clk 0:00:21]} 24. Rdf1 {[%clk 0:00:22]}  Kb7 {[%clk 0:00:17]} 0-1

[Event "2026 Biel Blitz Open"]
[Site "Biel, CH"]
[Date "2026.07.19"]
[Round "10"]
[White "Hakimifard, Ghazal"]
[Black "Schweizer, Samuel"]
[Result "0-1"]
[Board "21"]
[TimeControl "180+2"]
[WhiteFideId "12506540"]
[BlackFideId "1325353"]
[WhiteElo "2130"]
[BlackElo "2006"]
[WhiteTitle "WGM"]
[WhiteClock "0:00:04"]
[BlackClock "0:01:22"]
[Variant "Standard"]
[EndDate "2026.07.19"]
[EndTime "14:59:01"]

1. e4 {[%clk 0:03:03]}  c5 {[%clk 0:02:58]} 2. Nf3 {[%clk 0:03:04]}  e6 {[%clk 0:02:59]} 3. d4 {[%clk 0:03:05]}  cxd4 {[%clk 0:02:59]}
4. Nxd4 {[%clk 0:03:06]}  a6 {[%clk 0:03:00]} 5. Nc3 {[%clk 0:02:59]}  Qc7 {[%clk 0:02:59]} 6. a3 {[%clk 0:02:54]}  Nf6 {[%clk 0:02:59]}
7. Be3 {[%clk 0:02:52]}  d6 {[%clk 0:02:52]} 8. g4 {[%clk 0:02:53]}  Be7 {[%clk 0:02:53]} 9. g5 {[%clk 0:02:52]}  Nfd7 {[%clk 0:02:53]}
10. h4 {[%clk 0:02:52]}  b5 {[%clk 0:02:45]} 11. Bg2 {[%clk 0:02:52]}  Bb7 {[%clk 0:02:46]} 12. Qd2 {[%clk 0:02:41]}  Ne5 {[%clk 0:02:45]}
13. b3 {[%clk 0:02:24]}  Ng4 {[%clk 0:02:41]} 14. f4 {[%clk 0:01:47]}  Nxe3 {[%clk 0:02:40]} 15. Qxe3 {[%clk 0:01:48]}  Nd7 {[%clk 0:02:40]}
16. f5 {[%clk 0:01:39]}  e5 {[%clk 0:02:30]} 17. Nde2 {[%clk 0:01:37]}  Nb6 {[%clk 0:02:26]} 18. O-O-O {[%clk 0:01:20]}  d5 {[%clk 0:02:19]}
19. Nxd5 {[%clk 0:01:17]}  Nxd5 {[%clk 0:02:20]} 20. exd5 {[%clk 0:01:18]}  Bxa3+ {[%clk 0:02:12]} 21. Kb1 {[%clk 0:01:19]}  Bd6 {[%clk 0:02:12]}
22. Be4 {[%clk 0:00:49]}  Bc8 {[%clk 0:02:07]} 23. Kb2 {[%clk 0:00:34]}  Bd7 {[%clk 0:02:06]} 24. h5 {[%clk 0:00:27]}  a5 {[%clk 0:02:05]}
25. Nc3 {[%clk 0:00:20]}  a4 {[%clk 0:01:57]} 26. bxa4 {[%clk 0:00:05]}  bxa4 {[%clk 0:01:55]} 27. Rb1 {[%clk 0:00:06]}  Rc8 {[%clk 0:01:52]}
28. Rh3 {[%clk 0:00:04]}  Qa5 {[%clk 0:01:43]} 29. Kc1 {[%clk 0:00:03]}  a3 {[%clk 0:01:40]} 30. Na2 {[%clk 0:00:03]}  Bc5 {[%clk 0:01:26]}
31. Qd2 {[%clk 0:00:04]}  Qa7 {[%clk 0:01:24]} 32. f6 {[%clk 0:00:04]}  Bxh3 {[%clk 0:01:24]} 33. d6 {[%clk 0:00:04]}  Be3 {[%clk 0:01:20]}
34. d7+ {[%clk 0:00:05]}  Kd8 {[%clk 0:01:20]} 35. dxc8=Q+ {[%clk 0:00:04]}  Kxc8 {[%clk 0:01:22]} 0-1

[Event "2026 Biel Blitz Open"]
[Site "Biel, CH"]
[Date "2026.07.19"]
[Round "10"]
[White "Harish, Neeraj"]
[Black "Erne, Raphael"]
[Result "0-1"]
[Board "22"]
[TimeControl "180+2"]
[WhiteFideId "30958130"]
[BlackFideId "1341928"]
[WhiteElo "1920"]
[BlackElo "2128"]
[WhiteTitle "CM"]
[WhiteClock "0:00:05"]
[BlackClock "0:00:05"]
[Variant "Standard"]
[EndDate "2026.07.19"]
[EndTime "14:59:35"]

1. e4 {[%clk 0:03:02]}  c6 {[%clk 0:03:03]} 2. d4 {[%clk 0:03:01]}  d5 {[%clk 0:03:04]} 3. exd5 {[%clk 0:03:01]}  cxd5 {[%clk 0:03:05]}
4. c3 {[%clk 0:03:02]}  Qc7 {[%clk 0:02:58]} 5. Bd3 {[%clk 0:03:01]}  Nc6 {[%clk 0:02:59]} 6. Na3 {[%clk 0:02:59]}  a6 {[%clk 0:03:00]}
7. h3 {[%clk 0:02:57]}  e5 {[%clk 0:02:49]} 8. dxe5 {[%clk 0:02:55]}  Nxe5 {[%clk 0:02:50]} 9. Nf3 {[%clk 0:02:56]}  Bd6 {[%clk 0:02:42]}
10. O-O {[%clk 0:02:51]}  Ne7 {[%clk 0:02:29]} 11. Nc2 {[%clk 0:02:50]}  O-O {[%clk 0:02:25]} 12. Ncd4 {[%clk 0:02:50]}  N7g6 {[%clk 0:02:15]}
13. Nf5 {[%clk 0:02:41]}  Bc5 {[%clk 0:01:26]} 14. N3d4 {[%clk 0:02:25]}  Bd7 {[%clk 0:01:17]} 15. Be3 {[%clk 0:02:17]}  Rae8 {[%clk 0:01:14]}
16. Re1 {[%clk 0:01:38]}  Nc4 {[%clk 0:01:08]} 17. Bxc4 {[%clk 0:01:35]}  dxc4 {[%clk 0:01:09]} 18. Qh5 {[%clk 0:01:29]}  Re5 {[%clk 0:00:45]}
19. f4 {[%clk 0:01:12]}  Re4 {[%clk 0:00:24]} 20. Qf3 {[%clk 0:01:06]}  Rfe8 {[%clk 0:00:23]} 21. Ng3 {[%clk 0:01:02]}  R4e7 {[%clk 0:00:17]}
22. Rad1 {[%clk 0:00:57]}  Bc6 {[%clk 0:00:11]} 23. Qf2 {[%clk 0:00:50]}  Bd7 {[%clk 0:00:08]} 24. Bd2 {[%clk 0:00:47]}  Rxe1+ {[%clk 0:00:05]}
25. Rxe1 {[%clk 0:00:48]}  Bd6 {[%clk 0:00:05]} 26. Rxe8+ {[%clk 0:00:36]}  Bxe8 {[%clk 0:00:07]} 27. Nge2 {[%clk 0:00:18]}  Bd7 {[%clk 0:00:08]}
28. Be3 {[%clk 0:00:17]}  b5 {[%clk 0:00:09]} 29. g3 {[%clk 0:00:12]}  Ne7 {[%clk 0:00:10]} 30. Bd2 {[%clk 0:00:07]}  h6 {[%clk 0:00:05]}
31. g4 {[%clk 0:00:05]}  Nc6 {[%clk 0:00:05]} 32. Nxc6 {[%clk 0:00:06]}  Bxc6 {[%clk 0:00:06]} 33. Nd4 {[%clk 0:00:07]}  Bb7 {[%clk 0:00:06]}
34. Nf5 {[%clk 0:00:07]}  Qc6 {[%clk 0:00:06]} 35. Kf1 {[%clk 0:00:05]}  Qh1+ {[%clk 0:00:05]} 36. Ke2 {[%clk 0:00:06]}  Qe4+ {[%clk 0:00:05]}
37. Qe3 {[%clk 0:00:07]}  Qg2+ {[%clk 0:00:07]} 38. Qf2 {[%clk 0:00:08]}  Bf3+ {[%clk 0:00:04]} 39. Ke1 {[%clk 0:00:08]}  Qh1+ {[%clk 0:00:05]}
40. Qf1 {[%clk 0:00:08]}  Qxf1+ {[%clk 0:00:04]} 41. Kxf1 {[%clk 0:00:09]}  Bc5 {[%clk 0:00:03]} 42. Be3 {[%clk 0:00:10]}  Bf8 {[%clk 0:00:04]}
43. Kf2 {[%clk 0:00:11]}  Be4 {[%clk 0:00:02]} 44. Nd4 {[%clk 0:00:11]}  f6 {[%clk 0:00:04]} 45. f5 {[%clk 0:00:12]}  Kf7 {[%clk 0:00:04]}
46. Bf4 {[%clk 0:00:12]}  Bc5 {[%clk 0:00:05]} 47. Ke3 {[%clk 0:00:14]}  Ba8 {[%clk 0:00:04]} 48. Kd2 {[%clk 0:00:07]}  Bg2 {[%clk 0:00:04]}
49. h4 {[%clk 0:00:07]}  Bh3 {[%clk 0:00:06]} 50. Ne6 {[%clk 0:00:07]}  Bb6 {[%clk 0:00:06]} 51. Bc7 {[%clk 0:00:05]}  Ba7 {[%clk 0:00:05]}
52. Ba5 {[%clk 0:00:00]}  b4 {[%clk 0:00:05]} 0-1

[Event "2026 Biel Blitz Open"]
[Site "Biel, CH"]
[Date "2026.07.19"]
[Round "10"]
[White "Ashwath Kaushik"]
[Black "Stevens, Christian"]
[Result "1-0"]
[Board "23"]
[TimeControl "180+2"]
[WhiteFideId "33387230"]
[BlackFideId "649090"]
[WhiteElo "2122"]
[BlackElo "1912"]
[WhiteTitle "FM"]
[WhiteClock "0:02:25"]
[BlackClock "0:00:30"]
[Variant "Standard"]
[EndDate "2026.07.19"]
[EndTime "15:03:01"]

1. d4 {[%clk 0:03:03]}  Nf6 {[%clk 0:03:03]} 2. Nf3 {[%clk 0:03:04]}  g6 {[%clk 0:03:04]} 3. c4 {[%clk 0:03:06]}  Bg7 {[%clk 0:03:05]}
4. e3 {[%clk 0:03:07]}  d6 {[%clk 0:03:04]} 5. Nc3 {[%clk 0:03:08]}  O-O {[%clk 0:03:04]} 6. Be2 {[%clk 0:03:09]}  Nbd7 {[%clk 0:02:56]}
7. O-O {[%clk 0:03:10]}  e5 {[%clk 0:02:53]} 8. Qc2 {[%clk 0:03:10]}  Re8 {[%clk 0:02:48]} 9. h3 {[%clk 0:03:11]}  c6 {[%clk 0:02:29]}
10. Rd1 {[%clk 0:03:12]}  Qc7 {[%clk 0:02:27]} 11. b4 {[%clk 0:03:11]}  Nf8 {[%clk 0:01:57]} 12. b5 {[%clk 0:03:11]}  e4 {[%clk 0:01:23]}
13. Nh2 {[%clk 0:03:11]}  h5 {[%clk 0:01:19]} 14. bxc6 {[%clk 0:03:07]}  bxc6 {[%clk 0:01:20]} 15. Ba3 {[%clk 0:03:06]}  Bf5 {[%clk 0:01:03]}
16. Rac1 {[%clk 0:02:51]}  N8h7 {[%clk 0:01:02]} 17. d5 {[%clk 0:02:49]}  c5 {[%clk 0:01:03]} 18. Bb2 {[%clk 0:02:45]}  Nd7 {[%clk 0:01:03]}
19. Nb5 {[%clk 0:02:46]}  Qb8 {[%clk 0:01:01]} 20. Bxg7 {[%clk 0:02:45]}  Kxg7 {[%clk 0:00:59]} 21. g4 {[%clk 0:02:47]}  Ng5 {[%clk 0:00:51]}
22. gxf5 {[%clk 0:02:46]}  Nxh3+ {[%clk 0:00:50]} 23. Kg2 {[%clk 0:02:46]}  Ng5 {[%clk 0:00:50]} 24. fxg6 {[%clk 0:02:47]}  fxg6 {[%clk 0:00:50]}
25. Rg1 {[%clk 0:02:38]}  Ne5 {[%clk 0:00:50]} 26. Kh1 {[%clk 0:02:36]}  Nh3 {[%clk 0:00:48]} 27. Rg2 {[%clk 0:02:33]}  Rf8 {[%clk 0:00:44]}
28. Bxh5 {[%clk 0:02:29]}  Kh6 {[%clk 0:00:38]} 29. Bg4 {[%clk 0:02:27]}  Qd8 {[%clk 0:00:30]} 30. Bxh3 {[%clk 0:02:25]} 1-0

[Event "2026 Biel Blitz Open"]
[Site "Biel, CH"]
[Date "2026.07.19"]
[Round "10"]
[White "Materia, Matteo"]
[Black "Habibi, Ali"]
[Result "1-0"]
[Board "24"]
[TimeControl "180+2"]
[WhiteFideId "45150575"]
[BlackFideId "4604393"]
[WhiteElo "1881"]
[BlackElo "2116"]
[BlackTitle "IM"]
[WhiteClock "0:00:13"]
[BlackClock "0:00:37"]
[Variant "Standard"]
[EndDate "2026.07.19"]
[EndTime "15:06:52"]

1. Nf3 {[%clk 0:03:02]}  c5 {[%clk 0:03:03]} 2. g3 {[%clk 0:03:00]}  b6 {[%clk 0:03:04]} 3. Bg2 {[%clk 0:03:02]}  Bb7 {[%clk 0:03:06]}
4. O-O {[%clk 0:03:02]}  e6 {[%clk 0:03:07]} 5. d3 {[%clk 0:03:03]}  Nf6 {[%clk 0:03:06]} 6. e4 {[%clk 0:03:02]}  d5 {[%clk 0:03:05]}
7. e5 {[%clk 0:03:02]}  Nfd7 {[%clk 0:03:05]} 8. Re1 {[%clk 0:03:03]}  Be7 {[%clk 0:03:05]} 9. Bf4 {[%clk 0:02:58]}  h6 {[%clk 0:03:05]}
10. c3 {[%clk 0:02:44]}  g5 {[%clk 0:03:02]} 11. Bd2 {[%clk 0:02:43]}  Nc6 {[%clk 0:02:07]} 12. h3 {[%clk 0:01:52]}  Qc7 {[%clk 0:03:01]}
13. Qe2 {[%clk 0:01:47]}  O-O-O {[%clk 0:02:51]} 14. d4 {[%clk 0:01:46]}  Rdg8 {[%clk 0:02:46]} 15. Be3 {[%clk 0:01:38]}  h5 {[%clk 0:02:51]}
16. Nfd2 {[%clk 0:01:38]}  Kb8 {[%clk 0:02:42]} 17. a4 {[%clk 0:01:33]}  a6 {[%clk 0:02:32]} 18. Na3 {[%clk 0:01:33]}  c4 {[%clk 0:02:28]}
19. Reb1 {[%clk 0:01:23]}  Na5 {[%clk 0:02:08]} 20. b3 {[%clk 0:01:16]}  cxb3 {[%clk 0:02:07]} 21. Nxb3 {[%clk 0:01:16]}  Nc4 {[%clk 0:01:56]}
22. Nxc4 {[%clk 0:01:11]}  Qxc4 {[%clk 0:01:57]} 23. Qd2 {[%clk 0:01:11]}  Rc8 {[%clk 0:01:48]} 24. Bxg5 {[%clk 0:00:48]}  Bxg5 {[%clk 0:01:39]}
25. Qxg5 {[%clk 0:00:48]}  h4 {[%clk 0:01:39]} 26. g4 {[%clk 0:00:48]}  Rce8 {[%clk 0:01:14]} 27. Qc1 {[%clk 0:00:30]}  Rc8 {[%clk 0:01:10]}
28. Qf4 {[%clk 0:00:15]}  Rh7 {[%clk 0:01:02]} 29. Nd2 {[%clk 0:00:14]}  Qxc3 {[%clk 0:00:58]} 30. Nf3 {[%clk 0:00:15]}  Qd3 {[%clk 0:00:47]}
31. Ng5 {[%clk 0:00:12]}  Rg7 {[%clk 0:00:46]} 32. Rd1 {[%clk 0:00:13]}  Qg6 {[%clk 0:00:44]} 33. Nf3 {[%clk 0:00:13]}  Rgg8 {[%clk 0:00:37]}
34. Nxh4 {[%clk 0:00:13]} 1-0

[Event "2026 Biel Blitz Open"]
[Site "Biel, CH"]
[Date "2026.07.19"]
[Round "10"]
[White "Kelecevic, Nedeljko"]
[Black "Alexakis, Dimitrios"]
[Result "1-0"]
[Board "26"]
[TimeControl "180+2"]
[WhiteFideId "14400537"]
[BlackFideId "4200527"]
[WhiteElo "2150"]
[BlackElo "1895"]
[WhiteTitle "IM"]
[WhiteClock "0:00:03"]
[BlackClock "0:00:03"]
[Variant "Standard"]
[EndDate "2026.07.19"]
[EndTime "15:03:49"]

1. d4 {[%clk 0:03:01]}  Nf6 {[%clk 0:02:59]} 2. c4 {[%clk 0:03:02]}  c5 {[%clk 0:02:59]} 3. d5 {[%clk 0:03:04]}  b5 {[%clk 0:02:58]}
4. cxb5 {[%clk 0:03:05]}  a6 {[%clk 0:02:59]} 5. bxa6 {[%clk 0:03:06]}  Bxa6 {[%clk 0:03:00]} 6. Nc3 {[%clk 0:03:07]}  g6 {[%clk 0:03:00]}
7. Nf3 {[%clk 0:03:07]}  Bg7 {[%clk 0:03:01]} 8. e4 {[%clk 0:03:08]}  Bxf1 {[%clk 0:03:00]} 9. Kxf1 {[%clk 0:03:09]}  d6 {[%clk 0:03:00]}
10. g3 {[%clk 0:03:08]}  O-O {[%clk 0:03:01]} 11. Kg2 {[%clk 0:03:09]}  Nbd7 {[%clk 0:02:59]} 12. h3 {[%clk 0:03:10]}  Qa5 {[%clk 0:02:52]}
13. Re1 {[%clk 0:03:10]}  Rfb8 {[%clk 0:02:51]} 14. e5 {[%clk 0:03:08]}  dxe5 {[%clk 0:02:26]} 15. Nxe5 {[%clk 0:03:09]}  Nxe5 {[%clk 0:02:14]}
16. Rxe5 {[%clk 0:03:09]}  Qc7 {[%clk 0:02:10]} 17. Qe2 {[%clk 0:02:56]}  Kf8 {[%clk 0:01:49]} 18. a4 {[%clk 0:02:25]}  c4 {[%clk 0:01:26]}
19. Bf4 {[%clk 0:02:21]}  Qb7 {[%clk 0:01:16]} 20. Rb1 {[%clk 0:01:23]}  e6 {[%clk 0:01:16]} 21. Qf3 {[%clk 0:01:13]}  Nxd5 {[%clk 0:01:09]}
22. Rxd5 {[%clk 0:01:10]}  exd5 {[%clk 0:01:04]} 23. Bd6+ {[%clk 0:01:00]}  Kg8 {[%clk 0:01:01]} 24. Bxb8 {[%clk 0:01:01]}  Rxb8 {[%clk 0:01:02]}
25. Nxd5 {[%clk 0:01:02]}  c3 {[%clk 0:00:52]} 26. b4 {[%clk 0:00:46]}  c2 {[%clk 0:00:25]} 27. Rc1 {[%clk 0:00:44]}  Qd7 {[%clk 0:00:24]}
28. Rxc2 {[%clk 0:00:39]}  Qxa4 {[%clk 0:00:25]} 29. Rc7 {[%clk 0:00:33]}  Rf8 {[%clk 0:00:25]} 30. h4 {[%clk 0:00:27]}  h5 {[%clk 0:00:26]}
31. Rb7 {[%clk 0:00:25]}  Qa2 {[%clk 0:00:19]} 32. b5 {[%clk 0:00:26]}  f5 {[%clk 0:00:09]} 33. Ne7+ {[%clk 0:00:10]}  Kh7 {[%clk 0:00:10]}
34. Rb6 {[%clk 0:00:11]}  Bf6 {[%clk 0:00:05]} 35. Nd5 {[%clk 0:00:09]}  Bg7 {[%clk 0:00:05]} 36. Rb7 {[%clk 0:00:10]}  Qc2 {[%clk 0:00:03]}
37. b6 {[%clk 0:00:10]}  Qe4 {[%clk 0:00:00]} 38. Qxe4 {[%clk 0:00:10]}  fxe4 {[%clk 0:00:00]} 39. Nf4 {[%clk 0:00:03]} 1-0